Cogmind - Beta 13 @@@ ROGUE MODE // 2024.04.28 @ 14:44:08 Player: Oldman Pu Result: Destroyed by 5L-3N7(R) with Subdweller Beam Cannon Performance ------------- Evolutions (0) 0 Regions Visited (2) 400 Robots Destroyed (30) 150 Value Destroyed (712) 712 Prototype IDs (0) 0 Alien Tech Used (0) 0 Bonus (0) 0 TOTAL SCORE: 1262 Bonus ------- None Cogmind --------- Core Integrity 0/250 Matter 253/300 Energy 246/265 System Corruption 0% Temperature Cool (12) Movement Rolling (115) Ox1 Location -10/Subcaves Parts ------- > --- POWER (1) -------- Improved Ion Engine > --- PROPULSION (2) --- Compact Wheel Compact Wheel > --- UTILITY (2) ------ High-capacity Storage Unit Hardened Light Armor Plating > --- WEAPON (2) ------- Subdweller Laser Autogun > --- INVENTORY (20) --- Improved Ion Engine Improved Ion Engine Subdweller Power Source Wheel Wheel Subdweller Monowheel Heat Sink Improved Heat Sink High-capacity Storage Unit High-capacity Matter Pod (187) Hardened Light Armor Plating Hardened Light Armor Plating Hardened Light Armor Plating Subdweller Laser Assault Rifle Assault Rifle Assault Rifle Assault Rifle Autogun Autogun Peak State ------------ > --- POWER ------------ Improved Ion Engine > --- PROPULSION ------- Compact Wheel Compact Wheel > --- UTILITY ---------- Improved Heat Sink High-capacity Storage Unit > --- WEAPON ----------- Autogun Autogun > --- INVENTORY -------- Improved Ion Engine Improved Ion Engine Improved Ion Engine Wheel Wheel Compact Wheel Heat Sink High-capacity Storage Unit High-capacity Matter Pod Hardened Light Armor Plating Hardened Light Armor Plating Hardened Light Armor Plating Hardened Light Armor Plating Riot Gun Assault Rifle Assault Rifle Assault Rifle Assault Rifle Autogun Autogun [Rating: 15] Favorites ----------- Power Improved Ion Engine Engine Improved Ion Engine Propulsion Compact Wheel Wheel Compact Wheel Utility High-capacity Storage Unit Device Improved Heat Sink Storage High-capacity Storage Unit Processor Targeting Computer Protection Hardened Light Armor Plating Weapon Assault Rifle Energy Gun Medium Laser Ballistic Gun Assault Rifle Build | -11 -10 -10 ------- Run | Yrd Mat Sub Slots Evolved . | . . . Power . | . . . Propulsion . | . . . Utility . | . . . Weapon . | . . . Parts Attached 39 | 6 27 6 Power 7 | 1 5 1 Engine 7 | 1 5 1 Core . | . . . Reactor . | . . . Propulsion 8 | 2 5 1 Treads . | . . . Leg . | . . . Wheel 8 | 2 5 1 Hover . | . . . Flight . | . . . Utility 7 | 1 5 1 Device 1 | . 1 . Storage 4 | 1 3 . Processor 1 | . 1 . Hackware . | . . . Protection 1 | . . 1 Artifact . | . . . Weapon 17 | 2 12 3 Energy Gun 5 | 1 2 2 Energy Cannon . | . . . Ballistic Gun 12 | 1 10 1 Ballistic Cannon . | . . . Launcher . | . . . Special Weapon . | . . . Impact Weapon . | . . . Slashing Weapon . | . . . Piercing Weapon . | . . . Special Melee Weapon . | . . . Unidentified Prototypes . | . . . Parts Lost 8 | . 4 4 Power 2 | . 1 1 Propulsion 3 | . 2 1 Utility . | . . . Weapon 3 | . 1 2 Highest Loss Streak 3 | . 2 3 To Critical Strikes . | . . . Average Slot Usage (%) 98 | . 98 98 Engine 13 | . 13 13 Wheel 27 | . 27 27 Device 5 | . 4 5 Storage 14 | . 14 14 Processor 6 | . 8 . Protection 2 | . . 8 Energy Gun 4 | . 3 7 Ballistic Gun 23 | . 24 20 Naked Turns . | . . . Heaviest Build 59 | 12 54 59 Greatest Support 32 | 26 32 32 Greatest Overweight (x) 7 | . 7 1 Average Overweight (x) . | . . 1 Largest Inventory Capacity 20 | 8 20 20 Average Capacity 17 | 7 17 20 Most Carried 20 | . 20 20 Average Carried 14 | . 13 19 Final Capacity 20 | 8 20 20 Final Carried 20 | . 19 20 Class Distribution -------------------- 100% | Mutant Dominant Class ---------------- Mutant | -10/Materials Mutant | -10/Subcaves Resources | -11 -10 -10 ----------- Run | Yrd Mat Sub Matter Collected 1393 | 216 857 320 Remotely . | . . . Salvage Created 994 | . 851 143 Parts 90 | . 83 7 Haulers Intercepted 2 | . 2 . Recyclers Shooed 2 | . 2 . Parts Field Recycled . | . . . Retrieved Matter . | . . . Parts Self-Destructed 5 | . . 5 Prevented . | . . . Kills | -11 -10 -10 ------- Run | Yrd Mat Sub Combat Hostiles Destroyed 18 | . 15 3 Guns 18 | . 15 3 Classes Destroyed 9 | . 8 1 Worker 1 | . 1 . Builder 1 | . 1 . Hauler 2 | . 2 . Recycler 1 | . 1 . Operator 4 | . 4 . Watcher 3 | . 3 . Swarmer 3 | . 3 . Grunt 12 | . 12 . Subdweller 3 | . . 3 Best Kill Streak 6 | . 6 1 Combat Bots Only 4 | . 4 1 Max Kills in Single Turn 1 | . 1 1 Gunslinging . | . . . Exploded . | . . . Melee . | . . . Uniques/NPCs Destroyed . | . . . Combat | -11 -10 -10 -------- Run | Yrd Mat Sub Hostile Shots Fired 109 | . 69 40 Missed 29 | . 21 8 Damage Taken 1245 | . 563 682 Core 252 | . 125 127 Absorbed by Shields . | . . . Core Remaining (%) 100 | 100 . . Volleys Fired 121 | . 87 34 Largest 2 | . 2 2 Hottest 100 | . 100 83 Shots Fired 240 | . 173 67 Gun 240 | . 173 67 Cannon . | . . . Launcher . | . . . Special . | . . . Kinetic 217 | . 162 55 Thermal 22 | . 11 11 Explosive . | . . . Electromagnetic 1 | . . 1 Robot Hit Streak 16 | . 9 16 Robot Miss Streak 6 | . 6 3 Penetration Max . | . . . Secondary Targets 3 | . 3 . Max Gunslinging Chain 1 | . 1 . Shots Hit Robots 148 | . 98 50 Core Hits 54 | . 47 7 Critical Kills 1 | . 1 . Critical Parts Destroyed 2 | . 2 . Critical Strikes 4 | . 4 . Burn 1 | . 1 . Destroy 3 | . 3 . Melee Attacks . | . . . Impact . | . . . Slashing . | . . . Piercing . | . . . Sneak Attacks . | . . . Combat Hostiles . | . . . Follow-up Attacks . | . . . Damage Inflicted 1839 | . 1232 607 Guns 1831 | . 1232 599 Cannons . | . . . Explosions . | . . . Melee . | . . . Ramming 8 | . . 8 Kinetic 1650 | . 1208 442 Thermal 181 | . 24 157 Explosive . | . . . Electromagnetic . | . . . Impact . | . . . Slashing . | . . . Piercing . | . . . Highest Corruption . | . . . Average Corruption . | . . . Corruption Purged . | . . . Corruption Blocked . | . . . Overload Shots . | . . . Overflow Damage . | . . . Projectiles . | . . . Explosions . | . . . Melee . | . . . Knockbacks . | . . . Impact . | . . . Kinetic . | . . . Secondary . | . . . Self-Inflicted Damage 4 | . . 4 Shots . | . . . Rammed 1 | . . 1 Targets Rammed 1 | . . 1 Kicked . | . . . Crushed . | . . . Highest Temperature 45 | . 45 37 Average Temperature 18 | . 20 16 Received Heat Transfer 462 | . 288 174 Siege Activations . | . . . Robots Corrupted . | . . . Combat Hostiles . | . . . Parts Fried . | . . . Impact Corruptions . | . . . Robots Melted . | . . . Combat Hostiles . | . . . Parts Melted 1 | . . 1 Heat Transferred 348 | . 148 200 Parts Sabotaged . | . . . Parts Stolen . | . . . Parts Stripped . | . . . Power Chain Reactions . | . . . Alert | -11 -10 -10 ------- Run | Yrd Mat Sub Peak Influence 277 | . 277 . Initial . | . . . Average 120 | . 123 . Maximum Alert Level 1 | . 1 . Low Security (%) 76 | 100 76 . Level 1 23 | . 23 . Level 2 . | . . . Level 3 . | . . . Level 4 . | . . . Level 5 . | . . . High Security . | . . . Max Security . | . . . Squads Dispatched 4 | . 4 . Investigation . | . . . Extermination . | . . . Reinforcement 4 | . 4 . Assault . | . . . Garrison . | . . . Intercept . | . . . Searches Triggered . | . . . Construction Impeded . | . . . Haulers Reinforced . | . . . Active Scanning Responses . | . . . Cargo Convoy Interrupts . | . . . Stealth | -11 -10 -10 --------- Run | Yrd Mat Sub Distress Signals . | . . . Communications Jammed . | . . . Distress Signals . | . . . Times Spotted 36 | . 29 7 Peak Tracking Total 5 | . 5 3 Tactical Retreats 2 | . 1 1 Traps | -11 -10 -10 ------- Run | Yrd Mat Sub Traps Triggered 4 | . 4 . Indirectly . | . . . Trap Hack Attempts . | . . . Triggered . | . . . Disarmed . | . . . Reprogrammed . | . . . Reused . | . . . Traps Extracted . | . . . Installed . | . . . Triggered . | . . . Machines | -11 -10 -10 ---------- Run | Yrd Mat Sub Machines Disabled . | . . . Max in Single Turn . | . . . Machines Repaired . | . . . Machines Dismantled . | . . . Machines Sabotaged . | . . . Overloaded Fab Kills . | . . . Hacking | -11 -10 -10 --------- Run | Yrd Mat Sub Machines Accessed 4 | . 4 . Terminals 4 | . 4 . Fabricators . | . . . Repair Stations . | . . . Recycling Units . | . . . Scanalyzers . | . . . Garrison Access . | . . . Total Hacks 13 | . 13 . Successful 8 | . 8 . Failed 5 | . 5 . Catastrophic . | . . . Database Lockouts . | . . . Manual . | . . . Terminals 13 | . 13 . Fabricators . | . . . Repair Stations . | . . . Recycling Units . | . . . Scanalyzers . | . . . Garrison Access . | . . . Terminal Hacks 8 | . 8 . Emergency Access Points 1 | . 1 . Recycling Unit Index 1 | . 1 . Locate Traps 2 | . 2 . Dispatch Records 2 | . 2 . Investigation Status 1 | . 1 . Registered Components 1 | . 1 . Fabricator Hacks . | . . . Repair Station Hacks . | . . . Recycling Unit Hacks . | . . . Scanalyzer . | . . . Garrison Access Hacks . | . . . Unauthorized Hacks . | . . . Terminals . | . . . Fabricators . | . . . Repair Stations . | . . . Recycling Units . | . . . Scanalyzers . | . . . Garrison Access . | . . . Data Cores Recovered . | . . . Used . | . . . Hacking Detections 3 | . 3 . Full Trace Events . | . . . Feedback Events . | . . . Feedback Blocked . | . . . Robot Schematics Acquired . | . . . Robots Built . | . . . Authchips . | . . . Time . | . . . Total Robot Build Rating . | . . . Part Schematics Acquired . | . . . Parts Built . | . . . Authchips . | . . . Time . | . . . Total Part Build Rating . | . . . Parts Repaired . | . . . Time . | . . . Parts Recycled . | . . . Recycled Matter . | . . . Retrieved Matter . | . . . Retrieved Components . | . . . Parts Scanalyzed . | . . . Part Schematics Acquired . | . . . Parts Damaged . | . . . Bothacking | -11 -10 -10 ------------ Run | Yrd Mat Sub Used RIF Installer . | . . . Robots Hacked . | . . . Non-combat . | . . . Combat . | . . . Robot Hacks Applied . | . . . Relay Couplers Released . | . . . Fabnet Peak Effective % . | . . . Robots Rewired . | . . . Allies Hacked . | . . . Hacks Repelled . | . . . Allies | -11 -10 -10 -------- Run | Yrd Mat Sub Total Allies . | . . . Largest Group . | . . . Highest-Rated Group . | . . . Highest-Rated Ally . | . . . Total Orders . | . . . Ally Attacks . | . . . Total Damage . | . . . Kills . | . . . Allies Corrupted . | . . . Allies Melted . | . . . Intel | -11 -10 -10 ------- Run | Yrd Mat Sub Robot Analysis Total . | . . . Derelict Logs Recovered 2 | . . 2 Drone Launches . | . . . Drone Recoveries . | . . . Exploration | -11 -10 -10 ------------- Run | Yrd Mat Sub Turns Passed 2013 | 33 1449 531 Spaces Moved 1343 | 30 977 336 Core 12 | 7 5 . Treads . | . . . Legs . | . . . Wheels 1331 | 23 972 336 Hover . | . . . Flight . | . . . Fastest Speed 50 | 50 90 115 Average Speed 110 | 80 110 115 Slowest Speed 400 | 90 400 115 Overloaded Moves . | . . . Propulsion Burnouts . | . . . Robots Hopped . | . . . Cave-ins Triggered . | . . . Exploration Rate (%) 38 | 3 99 13 Regions Visited 2 Branch Regions 1 Pre-discovered Areas . | . . . Known Exits Taken . | . . . Unknown Exits Taken 2 | 1 1 . Scrap Searched 1 | . . 1 Spaces Dug . | . . . Terrain Destroyed . | . . . Melee . | . . . Projectile . | . . . AOE . | . . . Terrain Rammed . | . . . Walls Destroyed . | . . . Machines Disabled . | . . . Actions | -11 -10 -10 --------- Run | Yrd Mat Sub Total 1639 | 35 1178 426 Wait 86 | . 42 44 Move 1341 | 29 976 336 Hop . | . . . Pick Up 36 | . 31 5 Fast Attach 14 | 6 8 . Attach 9 | . 5 4 Detach . | . . . Swap 16 | . 14 2 Drop 15 | . 15 . Fire 121 | . 87 34 Melee . | . . . Ram 1 | . . 1 Kick . | . . . Crush . | . . . Escape Stasis . | . . . Rewire . | . . . Trap . | . . . Miscellaneous . | . . . Route ------- -11/Scrapyard -10/Materials (discovered 5 exits: [*Mat x3] / [*Min] / [*Sub]) -10/Subcaves (discovered 1 exit: Mat) History --------- Turn | Location | Event 2 | -11/Scrapyard | Met Revision 17 9 | -11/Scrapyard | Discovered new exit (range 15) 34 | -11/Scrapyard | Entered Materials 350 | -10/Materials | Build established: Mutant 431 | -10/Materials | Discovered new exit (range 16) 775 | -10/Materials | Discovered new exit (range 12) 787 | -10/Materials | Discovered new exit (range 5) 979 | -10/Materials | Discovered new exit (range 15) 1476 | -10/Materials | Discovered new exit (range 7) 1483 | -10/Materials | Entered Subcaves 1490 | -10/Subcaves | Identified exit to Materials 1642 | -10/Subcaves | A swath of the cavern ceiling suddenly collapsed 1674 | -10/Subcaves | Core integrity fell below 50% 1684 | -10/Subcaves | Core integrity fell below 20% 1706 | -10/Subcaves | Lost 3 parts (1p2w) 1796 | -10/Subcaves | Learned Materials machine intel 2014 | -10/Subcaves | Destroyed by 5L-3N7(R) with Subdweller Beam Cannon Last Messages --------------- 01687_ Sub. Optics melted. 01687_ 6V-RHQ(R) destroyed. 01692_ Acquired 53 matter. 01695_ Acquired Sub. Laser. 01699_ 11-KRW(O) collects matter. 01704_ Acquired Sub. Power Source. 01709_ 11-KRW(O) puts together Shrapnel Trap. 01782_ Acquired 10 matter. 01783_ Acquired 13 matter. 01796_ Acquired derelict log, extracted data. Data stored: Materials machine intel. 01801_ Acquired 11 matter. 01825_ 0A-523(u) builds Twisted Machinery. 01827_ Acquired 13 matter. 01828_ 0A-523(u) builds Twisted Machinery. 01834_ Acquired 10 matter. 01846_ 0A-523(u) builds Twisted Machinery. 01991_ HB-3PX(R) destroyed. 01994_ Acquired 42 matter. 01997_ Acquired Sub. Laser. Map ----- +----------------------------------------------------+ | ????????????????????????????????????# ##????# # | | ????????????????????????????????????#####??????# | | ???????????????????????????????????????????????# | | ???????????????????????????????????????????????# | | ??????????????????????????????????????????????## | | ??????????????????????????????????????????????# | | ??????????????????????????????????????????????# | | ??????????????????????????????????????????????# | | ??????????????????????????????????????????????# | | ??????????????????????????????????????????????# | | ??????????????????????????????????????????????# | | ??????????????????????????????????????????#???## | | ??????????????????????????????????????????# ? ?##" | | ??????????????????????????????????????????# #?# | | ?????????????????????????????????????????## ?## | | ?????????????????????????????????????????# ?# | | ????????????????#????????????????????????## #### | | ???????????????##"#??????????????????????# ""### | | ??????????????##"" ????????????????????##" " ## | | ??????????????# ??????? ???#? ????#"" " # | | ??????????????# ###### # #"??##" " | | ???????????????? " # ## ""##""""""""" | | ???????????????????? #?# """" ####"" | | ???????????????????????# !#????????#"" "#?#"""" | | ???????????????????????###R####?######### #?##""# | | ????????????????????????#@! # ### # "## # #### | | ????????????????????????# # | | ????????????????????????## O #!## | | ?????????????????????????### # # ##### #### | | ???????????????????????????#######???### ##??? | | ???????????????????????????????????????### ##???? | | ?????????????????????????????????????????####????? | | ?????????????????????????????????????????????????? | | ?????????????????????????????????????????????????? | | ?????????????????????????????????????????????????? | | ?????????????????????????????????????????????????? | | ?????????????????????????????????????????????????? | | ?????????????????????????????????????????????????? | | ?????????????????????????????????????????????????? | | ?????????????????????????????????????????????????? | | ?????????????????????????????????????????????????? | | ?????????????????????????????????????????????????? | | ?????????????????????????????????????????????????? | | ?????????????????????????????????????????????????? | | ?????????????????????????????????????????????????? | | ?????????????????????????????????????????????????? | | ?????????????????????????????????????????????????? | | | | | | | +----------------------------------------------------+ Best States ------------- Heat Dissipation 39 Energy Generation 12 Energy Capacity 265 Matter Stores 300 Matter Capacity 300 Sight Range 16 Terrain Scan Density 10 Armor Coverage 150 Evasion (%) 50 Targeting Accuracy 5 Item Schematics ----------------- None Robot Schematics ------------------ None Fabricated ------------ Nothing Alien Tech Used ----------------- None Achievements -------------- None Challenges ------------ None Game ------ Seed BottomlessEncryptedMount Manual? 0 Play Time 00:24:11 Cumulative 284.6 hours Start 2024.04.28 @ 13:14:09 End 2024.04.28 @ 14:44:08 Sessions 1 Manual Loads 0 Difficulty Rogue Special Mode None Game No. 228 Rogue 216 Adventurer 12 Explorer 0 Win Type - Total 1 Types 1/0/0/0/0/0/0/0/0 Lore% 33 Gallery% 51 Achievement% 37 Wizard Run 0 Options --------- Layout 1 ASCII 0 Keyboard 0 Movement Mouse Keybinds 0 Fullscreen 1 Font 32/SmallcapsGlow Map View 77x35 Zoom Use 0% Tactical HUD 1 Map Filters NONE Filters NONE Steam 1 RUN: f944811c-221f-4f06-a0e6-ca404e719e53